Cogmind - Beta 9.1 @@@ ROGUE MODE // 2019.10.30 @ 19:01:43 Player: Eggking Result: Destroyed by S-10 Pest with Light Assault Rifle Performance ------------- Evolutions (1) 500 Regions Visited (4) 800 Robots Destroyed (46) 230 Value Destroyed (1394) 1394 Prototype IDs (1) 20 Alien Tech Used (0) 0 Bonus (200) 200 TOTAL SCORE: 3144 Bonus ------- Entered Garrisons 200 Cogmind --------- Core Integrity 0/400 Matter 300/300 Energy 100/100 System Corruption 2% Temperature Cool (0) Location -9/Garrison Parts ------- Power (1) Propulsion (2) Aluminum Leg Aluminum Leg Utility (3) Large Storage Unit High-capacity Storage Unit Core Shielding Weapon (3) Great Maul Great Maul Great Maul Inventory (18) Ion Engine Light Nuclear Core Light Nuclear Core Aluminum Leg Aluminum Leg Aluminum Leg Aluminum Leg Aluminum Leg Core Shielding Light Armor Plating Beam Rifle EM Pulse Cannon EM Pulse Cannon EM Pulse Cannon Advanced Beam Cannon Advanced Beam Cannon Advanced Beam Cannon EMP Blaster Peak State ------------ Power Ion Engine Propulsion Light Treads Light Treads Utility Large Storage Unit High-capacity Storage Unit Core Shielding Weapon Great Maul Great Maul Great Maul Inventory Light Ion Engine Light Nuclear Core Light Nuclear Core Light Treads Aluminum Leg Aluminum Leg Aluminum Leg Aluminum Leg Core Shielding Light Armor Plating EM Pulse Cannon EM Pulse Cannon EM Pulse Cannon Advanced Beam Cannon Advanced Beam Cannon Advanced Beam Cannon EMP Blaster [Rating: 18] Favorites ----------- Power Ion Engine Engine Ion Engine Power Core Light Nuclear Core Propulsion Aluminum Leg Treads Light Treads Leg Aluminum Leg Wheel Compact Wheel Utility Large Storage Unit Storage Large Storage Unit Protection Core Shielding Weapon Great Maul Energy Gun Medium Laser Energy Cannon Beam Cannon Ballistic Gun Light Assault Rifle Impact Weapon Great Maul Build | -11 -10 -9 -9 -9 ------- Run | Scr Mat Mat Sto Gar Slots Evolved 2 | . . 2 . . Power . | . . . . . Propulsion . | . . . . . Utility 1 | . . 1 . . Weapon 1 | . . 1 . . Parts Attached 34 | . 9 17 5 3 Power 5 | . 1 3 1 . Engine 4 | . 1 2 1 . Core 1 | . . 1 . . Reactor . | . . . . . Propulsion 10 | . 2 4 1 3 Treads 4 | . . 2 1 1 Leg 2 | . . . . 2 Wheel 4 | . 2 2 . . Hover . | . . . . . Flight . | . . . . . Utility 6 | . 3 2 1 . Device . | . . . . . Storage 4 | . 2 2 . . Processor . | . . . . . Hackware . | . . . . . Protection 2 | . 1 . 1 . Artifact . | . . . . . Weapon 13 | . 3 8 2 . Energy Gun 1 | . 1 . . . Energy Cannon 3 | . . 3 . . Ballistic Gun 6 | . 2 4 . . Ballistic Cannon . | . . . . . Launcher . | . . . . . Special Weapon . | . . . . . Impact Weapon 3 | . . 1 2 . Slashing Weapon . | . . . . . Piercing Weapon . | . . . . . Special Melee Weapon . | . . . . . Unidentified Prototypes 1 | . . 1 . . Parts Lost 26 | . 6 12 6 2 Power 6 | . 1 3 1 1 Propulsion 8 | . 2 3 2 1 Utility 1 | . . . 1 . Weapon 11 | . 3 6 2 . Highest Loss Streak 6 | . 6 6 4 1 Average Slot Usage (%) 91 | . 90 91 89 95 Engine 10 | . 12 8 9 10 Treads 6 | . . 5 18 8 Leg 8 | . 26 . . 9 Wheel 6 | . . 15 . . Storage 26 | . 21 32 25 22 Protection 2 | . . . 4 11 Energy Gun 8 | . 23 3 . . Energy Cannon 2 | . . 5 2 . Ballistic Gun 8 | . 3 17 2 . Impact Weapon 8 | . . . 24 33 Naked Turns . | . . . . . Heaviest Build 79 | 13 57 79 79 64 Greatest Support 40 | 20 26 40 40 40 Greatest Overweight (x) 17 | . 17 4 3 3 Average Overweight (x) 1 | . 1 1 1 2 Largest Inventory Capacity 24 | . 18 24 24 18 Average Capacity 19 | . 14 23 20 18 Most Carried 24 | . 11 24 24 18 Average Carried 13 | . 8 12 19 16 Final Capacity 24 | 6 18 24 18 18 Final Carried 23 | 6 6 23 17 18 Class Distribution -------------------- 51% | Mutant 28% | Hauler-Mutant 18% | Hauler-Gunner Dominant Class ---------------- Mutant | -10/Materials Hauler-Mutant | -9/Materials Mutant | -9/Storage Mutant | -9/Garrison Resources | -11 -10 -9 -9 -9 ----------- Run | Scr Mat Mat Sto Gar Matter Collected 695 | 200 77 324 69 25 Remotely . | . . . . . Salvage Created 1692 | . 272 720 389 311 Parts 97 | . 16 54 18 9 Haulers Intercepted . | . . . . . Recyclers Shooed 1 | . . 1 . . Parts Field Recycled . | . . . . . Retrieved Matter . | . . . . . Parts Self-Destructed . | . . . . . Prevented . | . . . . . Kills | -11 -10 -9 -9 -9 ------- Run | Scr Mat Mat Sto Gar Combat Hostiles Destroyed 43 | . 8 19 9 7 Melee 9 | . . . 4 5 Guns 19 | . 8 9 2 . Cannons 12 | . . 10 2 . Classes Destroyed 7 | . 2 5 . . Builder 1 | . . 1 . . Watcher 2 | . . 2 . . Swarmer 10 | . 3 7 . . Grunt 25 | . 5 7 6 7 Brawler 1 | . . 1 . . Duelist 2 | . . 1 1 . Sentry 5 | . . 3 2 . Best Kill Streak 4 | . 3 4 4 3 Combat Bots Only 4 | . 3 4 4 3 Max Kills in Single Turn 1 | . 1 1 1 1 Gunslinging . | . . . . . Exploded . | . . . . . Melee 1 | . . . 1 1 Uniques/NPCs Destroyed . | . . . . . Combat | -11 -10 -9 -9 -9 -------- Run | Scr Mat Mat Sto Gar Damage Taken 3012 | . 503 984 971 554 Core 454 | . 54 79 200 121 Absorbed by Shields . | . . . . . Core Remaining (%) 89 | 100 78 . . . Volleys Fired 96 | . 32 56 8 . Largest 3 | . 2 3 2 . Hottest 108 | . 90 108 83 . Shots Fired 212 | . 57 139 16 . Gun 184 | . 57 119 8 . Cannon 28 | . . 20 8 . Launcher . | . . . . . Special . | . . . . . Kinetic 128 | . 18 102 8 . Thermal 66 | . 21 37 8 . Explosive . | . . . . . Electromagnetic 18 | . 18 . . . Robot Hit Streak 8 | . 4 8 5 . Robot Miss Streak 4 | . 3 4 1 . Penetration Max . | . . . . . Secondary Targets 2 | . 1 1 . . Max Gunslinging Chain 1 | . 1 1 . . Shots Hit Robots 169 | . 29 87 32 21 Core Hits 64 | . 14 35 10 5 Critical Hits 4 | . . 3 1 . Critical Kills 4 | . . 3 1 . Critical Parts Destroyed . | . . . . . Melee Attacks 57 | . . . 28 29 Impact 57 | . . . 28 29 Slashing . | . . . . . Piercing . | . . . . . Sneak Attacks . | . . . . . Combat Hostiles . | . . . . . Follow-up Attacks 7 | . . . 2 5 Damage Inflicted 2780 | . 362 1026 743 649 Guns 1100 | . 362 645 93 . Cannons 467 | . . 378 89 . Explosions . | . . . . . Melee 1210 | . . . 561 649 Ramming 3 | . . 3 . . Kinetic 734 | . 135 506 93 . Thermal 731 | . 125 517 89 . Explosive . | . . . . . Electromagnetic 102 | . 102 . . . Impact 1210 | . . . 561 649 Slashing . | . . . . . Piercing . | . . . . . Highest Corruption 7 | . 7 . 2 2 Average Corruption 4 | . 6 . 2 2 Corruption Purged . | . . . . . Effects 17 | . 13 . 1 3 Message Errors 2 | . 1 . 1 . Matter Fused 3 | . 3 . . . Heat Flow Errors 3 | . 2 . . 1 Energy Discharges 1 | . 1 . . . Data Loss (minor) 3 | . 2 . . 1 Misfires 1 | . 1 . . . Targeting Errors 4 | . 3 . . 1 Overload Shots . | . . . . . Overflow Damage 110 | . . . 55 55 Projectiles . | . . . . . Explosions . | . . . . . Melee 110 | . . . 55 55 Knockbacks 4 | . . . 2 2 Impact 4 | . . . 2 2 Kinetic . | . . . . . Secondary . | . . . . . Self-Inflicted Damage 1 | . . 1 . . Shots . | . . . . . Rammed 1 | . . 1 . . Targets Rammed 1 | . . 1 . . Kicked . | . . . . . Crushed . | . . . . . Highest Temperature 497 | . 497 303 156 229 Average Temperature 116 | . 186 76 80 123 Received Heat Transfer 1023 | . 255 183 351 234 Effects 9 | . 9 . . . Shutdowns 2 | . 2 . . . Energy Bleed 1 | . 1 . . . Interference 1 | . 1 . . . Damage (major) 5 | . 5 . . . Siege Activations . | . . . . . Robots Corrupted . | . . . . . Combat Hostiles . | . . . . . Parts Fried 4 | . . . 2 2 Impact Corruptions 6 | . . . 2 4 Robots Melted . | . . . . . Combat Hostiles . | . . . . . Parts Melted 4 | . 2 2 . . Heat Transferred 1665 | . 370 1110 185 . Parts Sabotaged . | . . . . . Parts Stolen . | . . . . . Parts Stripped . | . . . . . Power Chain Reactions . | . . . . . Missiles Intercepted . | . . . . . Alert | -11 -10 -9 -9 -9 ------- Run | Scr Mat Mat Sto Gar Peak Influence 425 | . 142 307 286 425 Average Influence 164 | . 61 182 193 280 Maximum Alert Level 2 | . . 1 1 2 Low Security (%) 60 | . . . . . Level 1 36 | . . . . . Level 2 3 | . . . . . Level 3 . | . . . . . Level 4 . | . . . . . Level 5 . | . . . . . High Security . | . . . . . Max Security . | . . . . . Squads Dispatched 1 | . 1 . . . Investigation . | . . . . . Extermination . | . . . . . Reinforcement 1 | . 1 . . . Assault . | . . . . . Garrison . | . . . . . Intercept . | . . . . . Construction Impeded . | . . . . . Haulers Reinforced . | . . . . . Stealth | -11 -10 -9 -9 -9 --------- Run | Scr Mat Mat Sto Gar Distress Signals 4 | . . 4 . . Communications Jammed . | . . . . . Distress Signals . | . . . . . Times Spotted 76 | . 11 38 14 13 Peak Tracking Total 6 | . 3 6 4 4 Tactical Retreats 12 | . 1 7 1 3 Traps | -11 -10 -9 -9 -9 ------- Run | Scr Mat Mat Sto Gar Traps Triggered 6 | . 5 . 1 . Indirectly . | . . . . . Trap Hack Attempts . | . . . . . Triggered . | . . . . . Disarmed . | . . . . . Reprogrammed . | . . . . . Reused . | . . . . . Traps Extracted . | . . . . . Installed . | . . . . . Triggered . | . . . . . Machines | -11 -10 -9 -9 -9 ---------- Run | Scr Mat Mat Sto Gar Machines Disabled . | . . . . . Max in Single Turn . | . . . . . Machines Sabotaged . | . . . . . Garrisons Compromised . | . . . . . Overloaded Fab Kills . | . . . . . Fab Network Shutdowns . | . . . . . Hacking | -11 -10 -9 -9 -9 --------- Run | Scr Mat Mat Sto Gar Machines Accessed 8 | . 1 4 3 . Terminals 5 | . 1 3 1 . Fabricators . | . . . . . Repair Stations 1 | . . 1 . . Recycling Units 1 | . . . 1 . Scanalyzers . | . . . . . Garrison Access 1 | . . . 1 . Total Hacks 18 | . 2 12 4 . Successful 11 | . 1 8 2 . Failed 7 | . 1 4 2 . Catastrophic 1 | . 1 . . . Database Lockouts . | . . . . . Manual 9 | . 2 7 . . Terminals 13 | . 2 9 2 . Fabricators . | . . . . . Repair Stations 3 | . . 3 . . Recycling Units 1 | . . . 1 . Scanalyzers . | . . . . . Garrison Access 1 | . . . 1 . Terminal Hacks 1 | . . 1 . . Zone Layout 1 | . . 1 . . Fabricator Hacks . | . . . . . Repair Station Hacks 2 | . . 2 . . Scan Component 1 | . . 1 . . Repair 1 | . . 1 . . Recycling Unit Hacks 1 | . . . 1 . Retrieve Components 1 | . . . 1 . Scanalyzer . | . . . . . Garrison Access Hacks 1 | . . . 1 . Unlock Access 1 | . . . 1 . Unauthorized Hacks 15 | . 3 12 . . Terminals 6 | . 1 5 . . Track 3 | . 1 2 . . Botnet 3 | . . 3 . . Fabricators . | . . . . . Repair Stations . | . . . . . Recycling Units . | . . . . . Scanalyzers . | . . . . . Garrison Access . | . . . . . Data Cores Recovered . | . . . . . Used . | . . . . . Hacking Detections 6 | . 1 4 1 . Full Trace Events . | . . . . . Feedback Events . | . . . . . Feedback Blocked . | . . . . . Robot Schematics Acquired . | . . . . . Robots Built . | . . . . . Matter . | . . . . . Time . | . . . . . Total Robot Build Rating . | . . . . . Part Schematics Acquired . | . . . . . Parts Built . | . . . . . Matter . | . . . . . Time . | . . . . . Total Part Build Rating . | . . . . . Parts Repaired 1 | . . 1 . . Time 26 | . . 26 . . Parts Recycled . | . . . . . Recycled Matter . | . . . . . Retrieved Matter . | . . . . . Retrieved Components 5 | . . . 5 . Parts Scanalyzed . | . . . . . Part Schematics Acquired . | . . . . . Parts Damaged . | . . . . . Bothacking | -11 -10 -9 -9 -9 ------------ Run | Scr Mat Mat Sto Gar Used RIF Installer . | . . . . . Robots Hacked . | . . . . . Non-combat . | . . . . . Combat . | . . . . . Robot Hacks Applied . | . . . . . Relay Couplers Released . | . . . . . Robots Rewired . | . . . . . Allies Hacked . | . . . . . Hacks Repelled . | . . . . . Allies | -11 -10 -9 -9 -9 -------- Run | Scr Mat Mat Sto Gar Total Allies . | . . . . . Largest Group . | . . . . . Highest-Rated Group . | . . . . . Highest-Rated Ally . | . . . . . Total Orders . | . . . . . Ally Attacks . | . . . . . Total Damage . | . . . . . Kills . | . . . . . Allies Corrupted . | . . . . . Allies Melted . | . . . . . Intel | -11 -10 -9 -9 -9 ------- Run | Scr Mat Mat Sto Gar Robot Analysis Total . | . . . . . Derelict Logs Recovered . | . . . . . Drone Launches . | . . . . . Drone Recoveries . | . . . . . Exploration | -11 -10 -9 -9 -9 ------------- Run | Scr Mat Mat Sto Gar Turns Passed 2072 | . 585 862 312 313 Spaces Moved 878 | 1 269 407 102 99 Core 2 | . 2 . . . Treads 267 | . . 111 102 54 Legs 308 | 1 262 . . 45 Wheels 301 | . 5 296 . . Hover . | . . . . . Flight . | . . . . . Fastest Speed 100 | 120 110 100 180 180 Average Speed 157 | 120 169 132 185 204 Slowest Speed 900 | 120 900 180 220 220 Overloaded Moves . | . . . . . Propulsion Burnouts . | . . . . . Robots Hopped . | . . . . . Cave-ins Triggered . | . . . . . Exploration Rate (%) 28 | 2 42 41 21 35 Regions Visited 4 Branch Regions 1 Pre-discovered Areas . | . . . . . Known Exits Taken 1 | . . . 1 . Unknown Exits Taken 3 | 1 1 1 . . Scrap Searched . | . . . . . Spaces Dug . | . . . . . Terrain Destroyed . | . . . . . Melee . | . . . . . Projectile . | . . . . . AOE . | . . . . . Actions | -11 -10 -9 -9 -9 --------- Run | Scr Mat Mat Sto Gar Total 1296 | . 344 634 157 161 Wait 183 | . 28 113 9 33 Move 874 | . 268 406 101 99 Hop . | . . . . . Pick Up 50 | . 5 36 6 3 Fast Attach 4 | . 2 . 1 1 Attach 28 | . 6 16 4 2 Detach 1 | . 1 . . . Swap 2 | . 1 1 . . Drop 9 | . 1 5 2 1 Fire 96 | . 32 56 8 . Melee 48 | . . . 26 22 Ram 1 | . . 1 . . Kick . | . . . . . Crush . | . . . . . Escape Stasis . | . . . . . Rewire . | . . . . . Trap . | . . . . . Miscellaneous . | . . . . . Route ------- -11/Scrapyard -10/Materials (discovered 2 exits: *Mat / [*Min]) -9/Materials (discovered 2 exits: [*Min] / *Sto) -9/Storage -9/Garrison History --------- Turn | Location | Event 1 | -11/Scrapyard | Discovered new exit (range 0) 1 | -11/Scrapyard | Entered Materials 137 | -10/Materials | Discovered new exit (range 6) 169 | -10/Materials | Discovered new exit (range 13) 306 | -10/Materials | Build established: Mutant 586 | -10/Materials | Entered another Materials area 586 | -9/Materials | Evolved 2 slots: Utility x1, Weapon x1 588 | -9/Materials | Lost 6 parts (1p2n3w) 688 | -9/Materials | Repaired Hcp. Storage Unit 1052 | -9/Materials | Lost 6 parts (1p1n4w) 1100 | -9/Materials | Discovered new exit (range 13) 1187 | -9/Materials | Discovered new exit (range 11) 1251 | -9/Materials | Lost 4 parts (1p2n1w) 1268 | -9/Materials | Build established: Hauler-Mutant 1448 | -9/Materials | Entered Storage 1586 | -9/Storage | Lost 4 parts (1n1u2w) 1704 | -9/Storage | Core integrity fell below 50% 1758 | -9/Storage | Identified exit to Garrison 1760 | -9/Storage | Entered Garrison 1817 | -9/Garrison | Core integrity fell below 20% 1857 | -9/Garrison | Build established: Mutant 1892 | -9/Garrison | Triggered checkpoint 1974 | -9/Garrison | Triggered checkpoint 2048 | -9/Garrison | Triggered checkpoint 2073 | -9/Garrison | Destroyed by S-10 Pest with Light Assault Rifle Last Messages --------------- 01865_ G-34 Mercenary system terminally corrupted. 01865_ Aluminum Leg fried. 01870_ Acquired 5 matter. 01892_ Beams of light sweep through the air. An alarm sounds. 01892_ Great Maul follow-up attack on G-34 Mercenary. 01892_ G-34 Mercenary destroyed. 01919_ System corrupted: Heat flow error (+245). 01922_ G-34 Mercenary destroyed. 01931_ Acquired Aluminum Leg. 01933_ Dropped Lgt. Treads. 01935_ Acquired 20 matter. 01991_ G-34 Mercenary destroyed. 01995_ Great Maul follow-up attack on G-34 Mercenary. 01998_ G-34 Mercenary destroyed. 02000_ ALERT: Garrison interior compromised. 02007_ Acquired Aluminum Leg. 02011_ Acquired Ion Engine. 02018_ Acquired Aluminum Leg. 02061_ Great Maul follow-up attack on S-10 Pest. 02067_ Lgt. Ion Engine destroyed. Map ----- +----------------------------------------------------+ | ????????????????????????????????????????????? #? | | ?????????????????????????????????????????????# #? | | ?????????????????????????????????????????????# #? | | ?????????????????????????????????????????????#^ #? | | ?????????????????????????????????????????????#^^#? | | ???????????????????????????????????????????### #? | | ???????????????????????????????????????????# #? | | ???????????????????????????????????????????# *#? | | ???????????????????????????????????????????# [%#? | | ???????????????????????????????????????????###%=#? | | ???????????????????????????????????########### ## | | ?????????????????????????####??????# | | ????????????????????????? #??????# % | | ????????????????????????? #??????# | | ?????????????????????????# #??????# ########### | | ?????????????????????????# #??????# #?????????? | | ?????????????????????????# #??????# #?????????? | | ?????????????????????????# #??????# #?????????? | | ?????????????????????????# #??????# #?????????? | | ?????????????????????????# ######## #?????????? | | ?????????????????????????# ## ## #?????????? | | ????????????????????????## ## ##! #?????????? | | ???????????????# ####### %%[ #?????????? | | ???????????????# [ #?????????? | | ???????????????# s #?????????? | | ???????????????##########@s ## ## #?????????? | | ????????????????????????# ss## ## #?????????? | | ???????????????????????? "?????????? | | ???????????????????????? "?????????? | | ??????????????????????? "?????????? | | ??????????????????????? "?????????? | | ??????????????????????### ## ## #?????????? | | ????????????????????????# ## ## #?????????? | | ???????????????????????? #?????????? | | ??????????????????????? #?????????? | | ????????????????????????# ^ #?????????? | | ????????????????????????######""""## ##?????????? | | ???????????????????????????????????? ???????????? | | ?????????????????????????????????????????????????? | | ?????????????????????????????????????????????????? | | ?????????????????????????????????????????????????? | | ?????????????????????????????????????????????????? | | ?????????????????????????????????????????????????? | | ?????????????????????????????????????????????????? | | ?????????????????????????????????????????????????? | | ?????????????????????????????????????????????????? | | ?????????????????????????????????????????????????? | | ?????????????????????????????????????????????????? | | ?????????????????????????????????????????????????? | | ?????????????????????????????????????????????????? | +----------------------------------------------------+ Best States ------------- Heat Dissipation 28 Energy Generation 14 Energy Capacity 250 Matter Stores 300 Matter Capacity 300 Sight Range 16 Terrain Scan Density 10 Core Shielding 20 Evasion (%) 40 Recoil Reduction 2 Item Schematics ----------------- None Robot Schematics ------------------ None Fabricated ------------ Nothing Alien Tech Used ----------------- None Achievements -------------- None Challenges ------------ None Game ------ Seed TransportTargetMagmablaster Manual? 0 Play Time 00:24:40 Cumulative 312.6 hours Start 2019.10.30 @ 18:39:21 End 2019.10.30 @ 19:01:43 Sessions 1 Manual Loads 0 Difficulty Rogue Special Mode None Game No. 42 Rogue 42 Adventurer 0 Explorer 0 Win Type - Total 0 Types 0/0/0/0/0/0/0 Lore% 15 Gallery% 36 Achievement% 21 Wizard Run 0 Options --------- ASCII 0 Keyboard 0 Movement Numpad Keybinds 0 Fullscreen 1 Font 18/SmallcapsGlow Map View 76x50 Tactical HUD 1 Map Filters NONE Filters NONE Steam 1 RUN: 4c1720fd-162b-4842-aab5-204e7d6b9f18